[Event "Early-Titled-Tuesday-Blitz-April-16-2024"]
[Site "Chess.com"]
[Date "2024.04.16"]
[Round "4"]
[White "TitarovVasiliYouTube"]
[Black "DonkyDonkyDonkey"]
[Result "1-0"]
[WhiteElo "2621"]
[BlackElo "2937"]
[TimeControl "180+1"]
[EndTime "8:39:38 PDT"]
[Termination "TitarovVasiliYouTube won by checkmate"]

1. e4 {[%clk 0:03:00.9]} 1... e5 {[%clk 0:02:59.5]} 2. Nf3 {[%clk 0:03:00.7]}
2... d5 {[%clk 0:03:00]} 3. d3 {[%clk 0:02:59.7]} 3... Nc6 {[%clk 0:02:59.2]} 4.
Be2 {[%clk 0:02:59]} 4... Nf6 {[%clk 0:02:59.1]} 5. Nbd2 {[%clk 0:02:58.4]} 5...
Bc5 {[%clk 0:02:58.3]} 6. O-O {[%clk 0:02:58.5]} 6... O-O {[%clk 0:02:58.2]} 7.
c3 {[%clk 0:02:58.9]} 7... a5 {[%clk 0:02:58.2]} 8. a4 {[%clk 0:02:59.6]} 8...
Ba7 {[%clk 0:02:57.9]} 9. h3 {[%clk 0:02:59.5]} 9... Re8 {[%clk 0:02:57.8]} 10.
Re1 {[%clk 0:02:59.9]} 10... h6 {[%clk 0:02:57.7]} 11. Bf1 {[%clk 0:03:00.3]}
11... d4 {[%clk 0:02:57.1]} 12. Nc4 {[%clk 0:02:59.4]} 12... Nd7 {[%clk
0:02:49.7]} 13. cxd4 {[%clk 0:02:44.1]} 13... Nxd4 {[%clk 0:02:50.6]} 14. Be3
{[%clk 0:02:41.3]} 14... Nxf3+ {[%clk 0:02:42.9]} 15. Qxf3 {[%clk 0:02:42.2]}
15... Nc5 {[%clk 0:02:43.5]} 16. Qg3 {[%clk 0:02:29.8]} 16... Qf6 {[%clk
0:02:37.9]} 17. Nxa5 {[%clk 0:01:59.3]} 17... Ne6 {[%clk 0:02:30.8]} 18. Nc4
{[%clk 0:01:55.9]} 18... Nd4 {[%clk 0:02:30.8]} 19. Rac1 {[%clk 0:01:34]} 19...
Nc6 {[%clk 0:02:30.7]} 20. Bxa7 {[%clk 0:01:28.7]} 20... Rxa7 {[%clk 0:02:31.6]}
21. Ne3 {[%clk 0:01:29.1]} 21... Rxa4 {[%clk 0:02:26.7]} 22. Nd5 {[%clk
0:01:29.5]} 22... Qd6 {[%clk 0:02:26.7]} 23. Be2 {[%clk 0:01:05]} 23... Be6
{[%clk 0:02:25.7]} 24. Bd1 {[%clk 0:01:02.6]} 24... Bxd5 {[%clk 0:01:43.1]} 25.
exd5 {[%clk 0:00:51.7]} 25... Rb4 {[%clk 0:01:41.5]} 26. dxc6 {[%clk 0:00:51.2]}
26... bxc6 {[%clk 0:01:41.8]} 27. Bf3 {[%clk 0:00:45.2]} 27... Rxb2 {[%clk
0:01:38]} 28. Bxc6 {[%clk 0:00:43.4]} 28... Re6 {[%clk 0:01:36.7]} 29. Be4
{[%clk 0:00:42.7]} 29... c5 {[%clk 0:01:33.6]} 30. Qe3 {[%clk 0:00:39.7]} 30...
Rb5 {[%clk 0:01:27.4]} 31. Rb1 {[%clk 0:00:35.8]} 31... Ra5 {[%clk 0:01:25.9]}
32. Rb7 {[%clk 0:00:33]} 32... Re8 {[%clk 0:01:11.2]} 33. Reb1 {[%clk
0:00:29.6]} 33... Rf8 {[%clk 0:01:09.3]} 34. Qf3 {[%clk 0:00:22.3]} 34... Qe6
{[%clk 0:00:33.5]} 35. Bd5 {[%clk 0:00:22.1]} 35... Qg6 {[%clk 0:00:31.6]} 36.
Rb8 {[%clk 0:00:18.4]} 36... Rxb8 {[%clk 0:00:20.8]} 37. Rxb8+ {[%clk
0:00:19.3]} 37... Kh7 {[%clk 0:00:21.5]} 38. Be4 {[%clk 0:00:19.1]} 38... Ra1+
{[%clk 0:00:19.9]} 39. Kh2 {[%clk 0:00:19.3]} 39... Rb1 {[%clk 0:00:20.8]} 40.
Bxg6+ {[%clk 0:00:19.4]} 40... fxg6 {[%clk 0:00:21.7]} 41. Qf8 {[%clk
0:00:19.8]} 41... h5 {[%clk 0:00:22.6]} 42. Qh8# {[%clk 0:00:19.7]} 1-0

[Event "Early-Titled-Tuesday-Blitz-April-16-2024"]
[Site "Chess.com"]
[Date "2024.04.16"]
[Round "4"]
[White "BilodeauA"]
[Black "GMG"]
[Result "0-1"]
[WhiteElo "2968"]
[BlackElo "2822"]
[TimeControl "180+1"]
[EndTime "8:39:41 PDT"]
[Termination "GMG won by resignation"]

1. e4 {[%clk 0:02:54.6]} 1... c5 {[%clk 0:02:59.6]} 2. Nf3 {[%clk 0:02:54.9]}
2... Nc6 {[%clk 0:02:59.4]} 3. Nc3 {[%clk 0:02:53.9]} 3... e6 {[%clk 0:02:58.6]}
4. h3 {[%clk 0:02:53.5]} 4... a6 {[%clk 0:02:51.8]} 5. d4 {[%clk 0:02:53.2]}
5... cxd4 {[%clk 0:02:51.9]} 6. Nxd4 {[%clk 0:02:54.1]} 6... Qc7 {[%clk
0:02:49.7]} 7. Nxc6 {[%clk 0:02:53.8]} 7... bxc6 {[%clk 0:02:47]} 8. Bd3 {[%clk
0:02:53.6]} 8... Nf6 {[%clk 0:02:45.7]} 9. O-O {[%clk 0:02:52.9]} 9... d5 {[%clk
0:02:45]} 10. Re1 {[%clk 0:02:52.8]} 10... Bd6 {[%clk 0:02:39.8]} 11. Qe2 {[%clk
0:02:41.6]} 11... e5 {[%clk 0:02:37.3]} 12. Bg5 {[%clk 0:02:32.1]} 12... Be6
{[%clk 0:02:34.8]} 13. Bxf6 {[%clk 0:02:26.8]} 13... gxf6 {[%clk 0:02:35.7]} 14.
Qf3 {[%clk 0:02:17.1]} 14... d4 {[%clk 0:02:25.2]} 15. Ne2 {[%clk 0:02:13.1]}
15... c5 {[%clk 0:02:14.3]} 16. b3 {[%clk 0:02:13.2]} 16... Rg8 {[%clk
0:02:12.5]} 17. Ng3 {[%clk 0:02:13]} 17... Ke7 {[%clk 0:02:04.6]} 18. Rac1
{[%clk 0:02:09.9]} 18... Qb7 {[%clk 0:02:03.6]} 19. Bc4 {[%clk 0:01:38]} 19...
Rg5 {[%clk 0:01:59.9]} 20. h4 {[%clk 0:01:25.8]} 20... Rg6 {[%clk 0:01:50]} 21.
Nf5+ {[%clk 0:01:21.8]} 21... Bxf5 {[%clk 0:01:49.7]} 22. Qxf5 {[%clk
0:01:22.7]} 22... Qc8 {[%clk 0:01:38.7]} 23. Qxc8 {[%clk 0:01:17.1]} 23... Rxc8
{[%clk 0:01:39.1]} 24. Bxa6 {[%clk 0:01:17.6]} 24... Ra8 {[%clk 0:01:37.1]} 25.
Bd3 {[%clk 0:01:16.8]} 25... Rg4 {[%clk 0:01:22.9]} 26. g3 {[%clk 0:01:14.9]}
26... c4 {[%clk 0:01:20.7]} 27. Bxc4 {[%clk 0:01:07.6]} 27... Bb4 {[%clk
0:01:20.3]} 28. Rf1 {[%clk 0:01:04.1]} 28... Rxa2 {[%clk 0:01:19.8]} 29. Be2
{[%clk 0:00:59.5]} 29... Rxe4 {[%clk 0:01:08.8]} 30. Bf3 {[%clk 0:00:57.1]}
30... f5 {[%clk 0:01:09.3]} 31. Kg2 {[%clk 0:00:35.5]} 31... Bc3 {[%clk
0:01:05.4]} 32. Bxe4 {[%clk 0:00:33.4]} 32... fxe4 {[%clk 0:01:05.5]} 33. g4
{[%clk 0:00:34]} 33... Ke6 {[%clk 0:01:03.9]} 34. Rh1 {[%clk 0:00:30.6]} 34...
Kd5 {[%clk 0:00:53.8]} 35. h5 {[%clk 0:00:31]} 35... Bd2 {[%clk 0:00:54.1]} 36.
Ra1 {[%clk 0:00:24.5]} 36... Rxc2 {[%clk 0:00:53.5]} 37. Ra7 {[%clk 0:00:22.5]}
37... Ke6 {[%clk 0:00:51.2]} 38. Ra6+ {[%clk 0:00:22]} 38... Ke7 {[%clk
0:00:51]} 39. h6 {[%clk 0:00:20]} 39... Be3 {[%clk 0:00:48.1]} 40. Rf1 {[%clk
0:00:17.6]} 40... d3 {[%clk 0:00:45.7]} 41. Ra4 {[%clk 0:00:15.8]} 41... Bd4
{[%clk 0:00:43.6]} 42. Kg3 {[%clk 0:00:13.8]} 42... Rc3 {[%clk 0:00:38.1]} 43.
g5 {[%clk 0:00:12.7]} 43... d2+ {[%clk 0:00:35.7]} 44. Kg4 {[%clk 0:00:07.5]}
44... Rc1 {[%clk 0:00:33.7]} 0-1

[Event "Early-Titled-Tuesday-Blitz-April-16-2024"]
[Site "Chess.com"]
[Date "2024.04.16"]
[Round "4"]
[White "Tagir45"]
[Black "Naruto75_3"]
[Result "1-0"]
[WhiteElo "2634"]
[BlackElo "2362"]
[TimeControl "180+1"]
[EndTime "8:39:41 PDT"]
[Termination "Tagir45 won by resignation"]

1. e4 {[%clk 0:03:00.9]} 1... c5 {[%clk 0:02:56.9]} 2. Nf3 {[%clk 0:03:00.2]}
2... d6 {[%clk 0:02:56.8]} 3. d4 {[%clk 0:02:59.5]} 3... cxd4 {[%clk 0:02:57.7]}
4. Nxd4 {[%clk 0:02:55.5]} 4... Nf6 {[%clk 0:02:57.1]} 5. Nc3 {[%clk 0:02:50.1]}
5... a6 {[%clk 0:02:55.9]} 6. Be3 {[%clk 0:02:46]} 6... e5 {[%clk 0:02:55.1]} 7.
Nb3 {[%clk 0:02:45]} 7... Be7 {[%clk 0:02:49.1]} 8. f3 {[%clk 0:02:44.6]} 8...
O-O {[%clk 0:02:44.7]} 9. Qd2 {[%clk 0:02:44.3]} 9... Be6 {[%clk 0:02:42.4]} 10.
O-O-O {[%clk 0:02:41.6]} 10... Nbd7 {[%clk 0:02:42]} 11. g4 {[%clk 0:02:40.9]}
11... Rc8 {[%clk 0:02:37.9]} 12. Kb1 {[%clk 0:02:36.8]} 12... Nb6 {[%clk
0:02:36.5]} 13. g5 {[%clk 0:02:29.7]} 13... Nfd7 {[%clk 0:02:30.3]} 14. h4
{[%clk 0:02:30.1]} 14... Nc5 {[%clk 0:02:21.6]} 15. Nxc5 {[%clk 0:01:42]} 15...
dxc5 {[%clk 0:02:22.5]} 16. Bh3 {[%clk 0:01:23.2]} 16... Qc7 {[%clk 0:02:08.4]}
17. Nd5 {[%clk 0:01:08.5]} 17... Bxd5 {[%clk 0:01:55.9]} 18. Bxc8 {[%clk
0:01:01.9]} 18... Bxa2+ {[%clk 0:01:40.7]} 19. Kxa2 {[%clk 0:01:02.8]} 19...
Qxc8 {[%clk 0:01:39.4]} 20. h5 {[%clk 0:00:57.7]} 20... Qe6+ {[%clk 0:01:32.3]}
21. Kb1 {[%clk 0:00:56.7]} 21... Nc4 {[%clk 0:01:27.5]} 22. Qe2 {[%clk
0:00:51.6]} 22... Rc8 {[%clk 0:01:22.2]} 23. Bc1 {[%clk 0:00:49.8]} 23... b5
{[%clk 0:01:17.6]} 24. g6 {[%clk 0:00:39.1]} 24... h6 {[%clk 0:01:14.6]} 25.
gxf7+ {[%clk 0:00:38.5]} 25... Qxf7 {[%clk 0:01:15.5]} 26. Rhg1 {[%clk
0:00:36.1]} 26... Rc6 {[%clk 0:01:13.9]} 27. Qg2 {[%clk 0:00:33.5]} 27... b4
{[%clk 0:01:07.6]} 28. Rd7 {[%clk 0:00:29.6]} 28... Nb6 {[%clk 0:01:06.3]} 29.
Rb7 {[%clk 0:00:25.5]} 29... Re6 {[%clk 0:01:00.4]} 30. Be3 {[%clk 0:00:19.6]}
30... Nc4 {[%clk 0:00:55]} 31. Bxc5 {[%clk 0:00:18.5]} 31... Na5 {[%clk
0:00:46.4]} 32. Rc7 {[%clk 0:00:11.3]} 32... b3 {[%clk 0:00:41.9]} 33. Bxe7
{[%clk 0:00:10.8]} 33... Rxe7 {[%clk 0:00:29.6]} 34. Rc8+ {[%clk 0:00:10.2]}
34... Kh7 {[%clk 0:00:19.8]} 35. Qg6+ {[%clk 0:00:09.9]} 1-0

[Event "Early-Titled-Tuesday-Blitz-April-16-2024"]
[Site "Chess.com"]
[Date "2024.04.16"]
[Round "4"]
[White "bylavochka"]
[Black "theoneandonlydaaevik"]
[Result "0-1"]
[WhiteElo "2359"]
[BlackElo "2582"]
[TimeControl "180+1"]
[EndTime "8:39:42 PDT"]
[Termination "theoneandonlydaaevik won by resignation"]

1. e4 {[%clk 0:03:00.9]} 1... c5 {[%clk 0:02:58.9]} 2. Nf3 {[%clk 0:03:00.3]}
2... e6 {[%clk 0:02:56.2]} 3. d4 {[%clk 0:03:00.2]} 3... cxd4 {[%clk 0:02:57.1]}
4. Nxd4 {[%clk 0:03:01]} 4... Nf6 {[%clk 0:02:57.8]} 5. Nc3 {[%clk 0:03:00.9]}
5... Nc6 {[%clk 0:02:58.2]} 6. Ndb5 {[%clk 0:02:51.7]} 6... Bc5 {[%clk
0:02:55.3]} 7. Bg5 {[%clk 0:02:45.6]} 7... a6 {[%clk 0:02:38.2]} 8. Nd6+ {[%clk
0:02:39.8]} 8... Ke7 {[%clk 0:02:38.5]} 9. Nc4 {[%clk 0:01:49]} 9... b5 {[%clk
0:02:18.6]} 10. Ne3 {[%clk 0:01:42.3]} 10... Re8 {[%clk 0:02:08.5]} 11. Ng4
{[%clk 0:01:16.1]} 11... h6 {[%clk 0:02:03.5]} 12. Nxf6 {[%clk 0:00:48]} 12...
gxf6 {[%clk 0:02:04.4]} 13. Bxh6 {[%clk 0:00:47.8]} 13... Qb6 {[%clk 0:02:03.7]}
14. Qd2 {[%clk 0:00:42.7]} 14... Bb7 {[%clk 0:01:51.2]} 15. Bd3 {[%clk
0:00:40.1]} 15... Rh8 {[%clk 0:01:47.6]} 16. Bf4 {[%clk 0:00:31.6]} 16... Ne5
{[%clk 0:01:47.5]} 17. Bxe5 {[%clk 0:00:25.6]} 17... fxe5 {[%clk 0:01:48.4]} 18.
O-O-O {[%clk 0:00:16.2]} 18... Bxf2 {[%clk 0:01:31.3]} 19. Qg5+ {[%clk
0:00:15.3]} 19... Ke8 {[%clk 0:01:29.9]} 20. Qg7 {[%clk 0:00:10.2]} 20... Qe3+
{[%clk 0:01:17.1]} 21. Kb1 {[%clk 0:00:10]} 21... Qh6 {[%clk 0:01:16.5]} 22.
Qxe5 {[%clk 0:00:08.6]} 22... Bc6 {[%clk 0:01:07.7]} 23. Rdf1 {[%clk 0:00:08.4]}
23... Bh4 {[%clk 0:01:00.1]} 24. g3 {[%clk 0:00:05.6]} 24... Be7 {[%clk
0:00:59.5]} 25. Ne2 {[%clk 0:00:03.6]} 25... f6 {[%clk 0:00:57.8]} 26. Qc7
{[%clk 0:00:03]} 26... Qe3 {[%clk 0:00:54.1]} 27. Rf4 {[%clk 0:00:02]} 27... Qc5
{[%clk 0:00:50]} 28. Rhf1 {[%clk 0:00:02]} 28... Bd6 {[%clk 0:00:50.2]} 29. Qa5
{[%clk 0:00:02]} 29... Bxf4 {[%clk 0:00:50.3]} 30. Nxf4 {[%clk 0:00:01.9]} 30...
Rxh2 {[%clk 0:00:43.9]} 31. Ng6 {[%clk 0:00:01.5]} 31... Rf2 {[%clk 0:00:43.7]}
32. Qe1 {[%clk 0:00:02.1]} 32... Rxf1 {[%clk 0:00:44]} 33. Qxf1 {[%clk
0:00:02.8]} 33... Kf7 {[%clk 0:00:44.5]} 34. Nf4 {[%clk 0:00:02.8]} 34... Qg5
{[%clk 0:00:44.1]} 35. e5 {[%clk 0:00:03.5]} 35... Qxe5 {[%clk 0:00:43.8]} 36.
Bg6+ {[%clk 0:00:04]} 36... Ke7 {[%clk 0:00:44]} 37. Bd3 {[%clk 0:00:03.9]}
37... Qg5 {[%clk 0:00:44]} 38. Ng6+ {[%clk 0:00:04.1]} 38... Kd6 {[%clk
0:00:44.5]} 39. Qf2 {[%clk 0:00:04]} 39... Kc7 {[%clk 0:00:44.6]} 40. b3 {[%clk
0:00:03.6]} 40... Rg8 {[%clk 0:00:43.9]} 41. Nf4 {[%clk 0:00:03.9]} 41... Qxg3
{[%clk 0:00:43.8]} 42. Qd4 {[%clk 0:00:04.8]} 42... Qg1+ {[%clk 0:00:43.8]} 43.
Qxg1 {[%clk 0:00:04.2]} 43... Rxg1+ {[%clk 0:00:44.7]} 44. Kb2 {[%clk
0:00:04.5]} 44... e5 {[%clk 0:00:45.4]} 45. Ne2 {[%clk 0:00:05.4]} 45... Re1
{[%clk 0:00:44.4]} 46. Nc3 {[%clk 0:00:05.4]} 46... e4 {[%clk 0:00:43.4]} 0-1

[Event "Early-Titled-Tuesday-Blitz-April-16-2024"]
[Site "Chess.com"]
[Date "2024.04.16"]
[Round "4"]
[White "Tugrik1969"]
[Black "mertfelin"]
[Result "1/2-1/2"]
[WhiteElo "2502"]
[BlackElo "2229"]
[TimeControl "180+1"]
[EndTime "8:39:42 PDT"]
[Termination "Game drawn by repetition"]

1. d4 {[%clk 0:03:00.9]} 1... d5 {[%clk 0:03:00.2]} 2. c4 {[%clk 0:02:59]} 2...
e6 {[%clk 0:03:00.6]} 3. Nf3 {[%clk 0:02:57.8]} 3... Nf6 {[%clk 0:03:00.8]} 4.
g3 {[%clk 0:02:57.3]} 4... Be7 {[%clk 0:03:01.4]} 5. Bg2 {[%clk 0:02:55.9]} 5...
O-O {[%clk 0:03:02]} 6. Nc3 {[%clk 0:02:53.7]} 6... b6 {[%clk 0:02:55.2]} 7.
cxd5 {[%clk 0:02:52.8]} 7... exd5 {[%clk 0:02:54.1]} 8. O-O {[%clk 0:02:52.5]}
8... Be6 {[%clk 0:02:54]} 9. Ne5 {[%clk 0:02:50.1]} 9... c5 {[%clk 0:02:49.8]}
10. dxc5 {[%clk 0:02:38.8]} 10... bxc5 {[%clk 0:02:49.6]} 11. Bg5 {[%clk
0:02:35.3]} 11... Qc7 {[%clk 0:02:40.8]} 12. Bf4 {[%clk 0:02:29.3]} 12... Qb7
{[%clk 0:02:25]} 13. Qb3 {[%clk 0:02:16.3]} 13... Qxb3 {[%clk 0:02:10.4]} 14.
axb3 {[%clk 0:02:17.2]} 14... a6 {[%clk 0:02:04.8]} 15. Rfd1 {[%clk 0:02:16]}
15... Rd8 {[%clk 0:02:04.1]} 16. Nc4 {[%clk 0:02:10.2]} 16... Nc6 {[%clk
0:01:40.2]} 17. Nb6 {[%clk 0:01:52.1]} 17... Ra7 {[%clk 0:01:38.5]} 18. Ncxd5
{[%clk 0:01:47.4]} 18... Nxd5 {[%clk 0:01:38.5]} 19. Nxd5 {[%clk 0:01:46.2]}
19... Bxd5 {[%clk 0:01:38.4]} 20. Bxd5 {[%clk 0:01:34.1]} 20... Nd4 {[%clk
0:01:35.9]} 21. Bc4 {[%clk 0:01:34.4]} 21... Bf6 {[%clk 0:01:27.8]} 22. Kf1
{[%clk 0:01:19.8]} 22... Re8 {[%clk 0:01:17.8]} 23. Rxa6 {[%clk 0:01:10.7]}
23... Rxa6 {[%clk 0:01:16.6]} 24. Bxa6 {[%clk 0:01:11.6]} 24... Nxb3 {[%clk
0:01:12.8]} 25. Rd7 {[%clk 0:01:05.7]} 25... Nd4 {[%clk 0:00:40.1]} 26. Bc4
{[%clk 0:01:01.9]} 26... Ne6 {[%clk 0:00:40.7]} 27. b3 {[%clk 0:01:02.2]} 27...
Nxf4 {[%clk 0:00:38.4]} 28. Bxf7+ {[%clk 0:00:53]} 28... Kf8 {[%clk 0:00:37.7]}
29. gxf4 {[%clk 0:00:31.4]} 29... Re7 {[%clk 0:00:38.2]} 30. Rxe7 {[%clk
0:00:31.6]} 30... Kxe7 {[%clk 0:00:38.8]} 31. Bc4 {[%clk 0:00:32.2]} 31... Bc3
{[%clk 0:00:39.1]} 32. e3 {[%clk 0:00:32]} 32... Kf6 {[%clk 0:00:39.5]} 33. Kg2
{[%clk 0:00:32.9]} 33... h6 {[%clk 0:00:40.1]} 34. Kf3 {[%clk 0:00:32.9]} 34...
Bd2 {[%clk 0:00:40.6]} 35. Ke4 {[%clk 0:00:32.2]} 35... h5 {[%clk 0:00:40.3]}
36. h3 {[%clk 0:00:31.9]} 36... Be1 {[%clk 0:00:39.6]} 37. f3 {[%clk 0:00:30.8]}
37... Bd2 {[%clk 0:00:38.9]} 38. Kd3 {[%clk 0:00:30.6]} 38... Bc1 {[%clk
0:00:38.7]} 39. Bd5 {[%clk 0:00:26.5]} 39... h4 {[%clk 0:00:36.9]} 40. Be4
{[%clk 0:00:25.7]} 40... Ke6 {[%clk 0:00:34.7]} 41. Bg6 {[%clk 0:00:25.3]} 41...
Kf6 {[%clk 0:00:32.1]} 42. Bh5 {[%clk 0:00:25.3]} 42... Ke6 {[%clk 0:00:31.8]}
43. Bg4+ {[%clk 0:00:23.7]} 43... Kf6 {[%clk 0:00:30.4]} 44. Ke4 {[%clk
0:00:23.3]} 44... Bd2 {[%clk 0:00:28.5]} 45. Kd3 {[%clk 0:00:21.8]} 45... Bc1
{[%clk 0:00:29.1]} 46. Ke2 {[%clk 0:00:22.4]} 46... Ke7 {[%clk 0:00:27.3]} 47.
Kd3 {[%clk 0:00:19.7]} 47... Kf6 {[%clk 0:00:26.3]} 1/2-1/2

[Event "Early-Titled-Tuesday-Blitz-April-16-2024"]
[Site "Chess.com"]
[Date "2024.04.16"]
[Round "4"]
[White "YegoryoCh"]
[Black "GMSrinath"]
[Result "0-1"]
[WhiteElo "2569"]
[BlackElo "2812"]
[TimeControl "180+1"]
[EndTime "8:39:43 PDT"]
[Termination "GMSrinath won by resignation"]

1. e4 {[%clk 0:03:00.9]} 1... c5 {[%clk 0:02:57.8]} 2. Nf3 {[%clk 0:03:01]} 2...
d6 {[%clk 0:02:58.6]} 3. d4 {[%clk 0:02:59.4]} 3... cxd4 {[%clk 0:02:59.5]} 4.
Nxd4 {[%clk 0:03:00.3]} 4... Nf6 {[%clk 0:03:00.2]} 5. Nc3 {[%clk 0:03:00.5]}
5... Nc6 {[%clk 0:03:00.8]} 6. Bg5 {[%clk 0:02:59.6]} 6... e6 {[%clk 0:03:01.1]}
7. Qd2 {[%clk 0:02:59.4]} 7... a6 {[%clk 0:03:01.5]} 8. O-O-O {[%clk 0:02:58.8]}
8... Be7 {[%clk 0:03:02.1]} 9. f3 {[%clk 0:02:53.9]} 9... O-O {[%clk 0:03:01.3]}
10. h4 {[%clk 0:02:45.4]} 10... Nxd4 {[%clk 0:02:56.7]} 11. Qxd4 {[%clk
0:02:46.1]} 11... b5 {[%clk 0:02:57.4]} 12. g4 {[%clk 0:02:44.7]} 12... Bb7
{[%clk 0:02:57.2]} 13. Qd2 {[%clk 0:02:39]} 13... Rc8 {[%clk 0:02:54.2]} 14. Bf4
{[%clk 0:02:36.5]} 14... b4 {[%clk 0:02:51]} 15. Ne2 {[%clk 0:02:36.1]} 15...
Qa5 {[%clk 0:02:44.1]} 16. Kb1 {[%clk 0:02:36]} 16... Nxe4 {[%clk 0:02:40.6]}
17. Qe3 {[%clk 0:02:20]} 17... Nf6 {[%clk 0:02:32.4]} 18. Nd4 {[%clk 0:02:18.1]}
18... Nd5 {[%clk 0:02:24]} 19. Qd2 {[%clk 0:02:16.5]} 19... Nxf4 {[%clk
0:02:22.5]} 20. Qxf4 {[%clk 0:02:17.4]} 20... e5 {[%clk 0:02:23.4]} 21. Qe3
{[%clk 0:02:11.2]} 21... exd4 {[%clk 0:01:57.7]} 22. Qxe7 {[%clk 0:02:11.1]}
22... Bxf3 {[%clk 0:01:58.3]} 23. Bd3 {[%clk 0:02:09.9]} 23... Qe5 {[%clk
0:01:58.2]} 24. Qa7 {[%clk 0:01:49]} 24... Ra8 {[%clk 0:01:55.4]} 25. Qc7 {[%clk
0:01:40.4]} 25... Rfc8 {[%clk 0:01:55.2]} 26. Qd7 {[%clk 0:01:40.5]} 26... Re8
{[%clk 0:01:04.7]} 27. Rhf1 {[%clk 0:01:25.5]} 27... Bxd1 {[%clk 0:01:00.6]} 28.
Qxf7+ {[%clk 0:01:21.8]} 28... Kh8 {[%clk 0:01:01.2]} 29. Rxd1 {[%clk
0:01:22.5]} 29... Qe6 {[%clk 0:00:53.2]} 30. Qh5 {[%clk 0:01:20.6]} 30... g6
{[%clk 0:00:53.7]} 31. Qh6 {[%clk 0:01:19.8]} 31... Qxg4 {[%clk 0:00:50.7]} 32.
Rf1 {[%clk 0:01:20]} 32... Qh5 {[%clk 0:00:43.1]} 33. Qf4 {[%clk 0:01:19.6]}
33... Qe5 {[%clk 0:00:42.7]} 34. Qd2 {[%clk 0:00:48.3]} 34... a5 {[%clk
0:00:41.2]} 35. b3 {[%clk 0:00:38.8]} 35... a4 {[%clk 0:00:41.2]} 36. Qxb4
{[%clk 0:00:35]} 36... a3 {[%clk 0:00:41.3]} 37. Rh1 {[%clk 0:00:16.1]} 37...
Qc5 {[%clk 0:00:39.3]} 38. Qd2 {[%clk 0:00:15.8]} 38... Qc3 {[%clk 0:00:38.6]}
39. Qxc3 {[%clk 0:00:15.3]} 39... dxc3 {[%clk 0:00:38.5]} 40. Kc1 {[%clk
0:00:16.2]} 40... Re3 {[%clk 0:00:37.3]} 41. Kd1 {[%clk 0:00:08.2]} 41... Rae8
{[%clk 0:00:37.9]} 42. Rg1 {[%clk 0:00:07.9]} 42... Rh3 {[%clk 0:00:34.3]} 0-1

[Event "Early-Titled-Tuesday-Blitz-April-16-2024"]
[Site "Chess.com"]
[Date "2024.04.16"]
[Round "4"]
[White "Attacker_2006"]
[Black "Kildepiotr"]
[Result "0-1"]
[WhiteElo "2423"]
[BlackElo "2698"]
[TimeControl "180+1"]
[EndTime "8:39:43 PDT"]
[Termination "Kildepiotr won by checkmate"]

1. Nf3 {[%clk 0:03:00.9]} 1... g6 {[%clk 0:02:59.7]} 2. g3 {[%clk 0:02:58.9]}
2... Bg7 {[%clk 0:03:00]} 3. Bg2 {[%clk 0:02:59.6]} 3... d5 {[%clk 0:03:00.4]}
4. d4 {[%clk 0:02:59.3]} 4... Nf6 {[%clk 0:03:00.3]} 5. O-O {[%clk 0:02:59.8]}
5... O-O {[%clk 0:03:00.9]} 6. c4 {[%clk 0:02:56.1]} 6... c6 {[%clk 0:02:57.1]}
7. b3 {[%clk 0:02:53.2]} 7... Bf5 {[%clk 0:02:55.3]} 8. Nc3 {[%clk 0:02:50.8]}
8... a5 {[%clk 0:02:53.9]} 9. Bb2 {[%clk 0:02:47.3]} 9... Ne4 {[%clk 0:02:53.4]}
10. Nd2 {[%clk 0:02:44.1]} 10... Nxd2 {[%clk 0:02:41.9]} 11. Qxd2 {[%clk
0:02:41.4]} 11... dxc4 {[%clk 0:02:42.3]} 12. e4 {[%clk 0:02:36.9]} 12... Bc8
{[%clk 0:02:36.5]} 13. Rad1 {[%clk 0:02:33.6]} 13... cxb3 {[%clk 0:02:36.5]} 14.
axb3 {[%clk 0:02:34.5]} 14... Na6 {[%clk 0:02:34.8]} 15. d5 {[%clk 0:02:29.9]}
15... Nb4 {[%clk 0:02:22.1]} 16. Qe2 {[%clk 0:02:20.1]} 16... c5 {[%clk
0:02:16.1]} 17. e5 {[%clk 0:02:18.5]} 17... Bf5 {[%clk 0:02:08.6]} 18. g4 {[%clk
0:02:12.5]} 18... Bc2 {[%clk 0:02:08.2]} 19. f4 {[%clk 0:02:03.7]} 19... Bxb3
{[%clk 0:02:03.8]} 20. Rd2 {[%clk 0:02:02.8]} 20... a4 {[%clk 0:02:00.2]} 21.
Ba3 {[%clk 0:02:00]} 21... Qa5 {[%clk 0:01:53.1]} 22. f5 {[%clk 0:01:55]} 22...
Bh6 {[%clk 0:01:49.3]} 23. Rb2 {[%clk 0:01:49.4]} 23... Qa6 {[%clk 0:01:41.2]}
24. Qe4 {[%clk 0:01:14.4]} 24... Qd3 {[%clk 0:01:36.5]} 25. Bxb4 {[%clk
0:01:14.5]} 25... Qxe4 {[%clk 0:01:36.4]} 26. Nxe4 {[%clk 0:01:14.7]} 26... Be3+
{[%clk 0:01:35.9]} 27. Kh1 {[%clk 0:01:11.7]} 27... cxb4 {[%clk 0:01:36.4]} 28.
d6 {[%clk 0:00:51.3]} 28... exd6 {[%clk 0:01:24.3]} 29. Nxd6 {[%clk 0:00:48.3]}
29... Bd4 {[%clk 0:01:21]} 30. Re2 {[%clk 0:00:45.4]} 30... a3 {[%clk
0:01:20.2]} 31. e6 {[%clk 0:00:33.5]} 31... fxe6 {[%clk 0:01:16.7]} 32. Bxb7
{[%clk 0:00:31]} 32... a2 {[%clk 0:01:13.9]} 33. Bxa8 {[%clk 0:00:31.3]} 33...
Rxa8 {[%clk 0:01:13.1]} 34. Kg2 {[%clk 0:00:24.4]} 34... exf5 {[%clk 0:01:08.6]}
35. gxf5 {[%clk 0:00:19]} 35... a1=Q {[%clk 0:00:58.3]} 36. Rxa1 {[%clk
0:00:17.2]} 36... Rxa1 {[%clk 0:00:59.2]} 37. Re8+ {[%clk 0:00:09.9]} 37... Kg7
{[%clk 0:00:59.1]} 38. Rd8 {[%clk 0:00:09.9]} 38... Ra2+ {[%clk 0:00:52]} 39.
Kh3 {[%clk 0:00:02.7]} 39... Be5 {[%clk 0:00:41]} 40. Ne8+ {[%clk 0:00:02.8]}
40... Kh6 {[%clk 0:00:38.3]} 41. fxg6 {[%clk 0:00:03.5]} 41... Be6+ {[%clk
0:00:32.4]} 42. Kh4 {[%clk 0:00:03.6]} 42... Rxh2# {[%clk 0:00:30.4]} 0-1